[Event "CCT Chessable Masters D-I 2024"]
[Site "Online"]
[Date "2024.02.03"]
[Round "51"]
[White "So, Wesley"]
[Black "Firouzja, Alireza"]
[Result "0-1"]
[ECO "C54"]
[WhiteElo "2757"]
[BlackElo "2759"]
[Annotator "TA"]
[PlyCount "66"]
[EventDate "2024.01.12"]
[EventType "k.o."]
[EventCountry "NET"]
[SourceTitle "playchess.com"]
[Source "ChessBase"]
[SourceQuality "1"]
[TimeControl "600+2"]

{[%evp 20,66,0,-7,-1,4,0,-5,-2,-47,-18,-27,-4,-33,22,24,12,4,186,160,202,203,292,213,265,208,499,53,61,53,62,57,37,27,18,19,33,-729,-734,-29979,-29980,-2672,-778,-769,-772,-29996,-29997,-29997,-29998]} 1. e4 {[%emt 0:00:08]} e5 {[%emt 0:00:04]} 2. Nf3 {[%emt 0:00:04]} Nc6 {[%emt 0:00:00]} 3. Bc4 {[%emt 0:00:01]} Nf6 {[%emt 0:00:02]} 4. d3 {[%emt 0:00:03]} Bc5 {[%emt 0:00:01]} 5. Bg5 {[%emt 0:00:00]} h6 {[%emt 0:00:06]} 6. Bh4 {[%emt 0:00:01]} d6 {[%emt 0:00:03]} 7. c3 {[%emt 0:00:08] is now debated instead of 7.h3.} a6 {[%emt 0:00:03]} 8. a4 {[%emt 0:00:06] C54: Giuoco Piano: 4 c3 Nf6, main lines with 5 d4 and 5 d3.} Ba7 {[%emt 0:00:05]} 9. Nbd2 {[%emt 0:00:09]} g5 {[%emt 0:00:19]} 10. Bg3 {[%emt 0:00:01]} Qe7 {[%emt 0:00:02]} 11. O-O {[%emt 0:00:54]} Nd7 {[%emt 0:00:15]} 12. b4 {[%emt 0:00:21]} Nf8 {[%emt 0:00:14]} 13. b5 {[%emt 0:00:01]} Na5 {[%emt 0:00:01]} 14. Bd5 {[%emt 0:00:06]} h5 {[%emt 0:00:43]} 15. h4 $1 {[%emt 0:01:23]} g4 {[%emt 0:00:02]} 16. Ne1 $1 {[%emt 0:00:36]} c6 $5 $146 {[%emt 0:00:55][%mdl 8] New and interesting.} (16... Ng6 $15) ({Predecessor:} 16... Ng6 17. d4 Nxh4 18. f4 exd4 19. cxd4 c6 20. bxc6 bxc6 21. Ba2 d5 22. f5 Bxd4+ {½-½ Navara,D (2689)-Praggnanandhaa,R (2690) FIDE World Cup 2023 (3.2)}) 17. Ba2 $11 {[%emt 0:00:25]} Ng6 {[%emt 0:00:10]} 18. Qb1 $1 {[%emt 0:00:20]} Nxh4 $2 {[%emt 0:00:52]} (18... axb5 $11 {and Black stays safe.} 19. axb5 O-O) 19. b6 $18 {[%emt 0:00:03]} Ng6 {[%emt 0:03:02]} 20. bxa7 {[%emt 0:00:14]} h4 {[%emt 0:00:05]} (20... Qd8 $142 21. d4 (21. f3 h4 $16) 21... h4) 21. Bh2 {[%emt 0:00:03]} Qg5 {[%emt 0:00:11]} 22. Qb4 {[%emt 0:01:36]} g3 $2 {[%emt 0:00:28]} (22... h3) 23. Qxa5 $2 {[%emt 0:01:06]} (23. fxg3 $18 hxg3 24. Bxg3 (24. Bxf7+ Kd7 $18) (24. Rxf7 Qe3+ 25. Kf1 gxh2)) 23... gxh2+ $14 {[%emt 0:00:07]} (23... Qxd2 $2 24. Bxf7+ (24. fxg3 Qe3+ 25. Rf2 hxg3 $16) 24... Kxf7 25. fxg3+ Ke7 26. Rf2 $18) 24. Kh1 {[%emt 0:00:16]} Qxd2 {[%emt 0:00:03]} 25. Qc7 $1 {[%emt 0:00:02]} O-O $1 {[%emt 0:00:06]} 26. Qxd6 {[%emt 0:00:05]} Kg7 $1 {[%emt 0:00:07]} 27. Nf3 {[%emt 0:00:33]} (27. Kxh2 $2 h3 28. d4 (28. gxh3 Qf4+ 29. Kh1 Rh8 $19) (28. g3 $2 Qe2 $19) 28... Qxc3 $19 (28... hxg2 29. Nxg2 Qxc3 30. Kg1 $11)) 27... Qxc3 {[%emt 0:00:41]} 28. d4 $2 {[%emt 0:00:43][%mdl 8192]} (28. Rab1 $14) 28... h3 $19 {[%emt 0:00:18]} 29. Ng5 {[%emt 0:00:37]} hxg2+ {[%emt 0:00:24]} (29... Qxd4 30. Qxd4 exd4 31. gxh3 $17) 30. Kxg2 {[%emt 0:00:00]} Rh8 {[%emt 0:00:36]} (30... exd4 31. e5 h1=B+ 32. Kxh1 Rh8+ 33. Kg1 $11) (30... Qxd4 31. Qxd4 exd4 32. Kxh2 $15) (30... Rxa7 31. dxe5 Qxe5 32. Qxe5+ Nxe5 33. Kxh2 $15) (30... h1=Q+ $142 31. Kxh1 Rh8+ (31... exd4 32. Kg2 $11) (31... Qxd4 32. Rad1 $17) (31... Rxa7 32. dxe5 Rh8+ 33. Kg1 $11) 32. Kg1 Rh5 (32... exd4 $2 33. Bxf7 Rh6 34. Ra3 $18) (32... Qxd4 33. Rfd1 $11)) 31. Kh1 $19 {[%emt 0:00:12]} Bh3 {[%emt 0:00:07]} 32. Bxf7 {[%emt 0:00:04]} Bg2+ $1 {[%emt 0:00:04]} ({Worse is} 32... Bxf1 33. Qxg6+ Kf8 34. Be6 (34. Rxf1 Qd3 35. Qd6+ Kg7 36. Qxe5+ Kf8 37. Qxh8+ Ke7 38. Qe5+ Kf8 39. Qd6+ Kg7) (34. Qd6+ Kg7 35. Qxe5+ Kf8 36. Qxh8+ Ke7 37. Qe5+ Kf8 38. Qf6 Qf3+ 39. Nxf3 Bg2+ 40. Kxg2 Rxa7 41. Bg6+ Kg8 42. Qf7+ Kh8 43. Qh7#) (34. Rxf1 Qd3 35. Re1 Qd2 36. Qd6+ Kg7 37. Qxe5+ Kf8 38. Qxh8+ Ke7 39. Qe5+ Kf8) (34. Qd6+ Kg7 35. Qxe5+ Kf8 36. Qxh8+ Ke7 37. Qxa8 Qxd4 38. Qe8+ Kd6 39. Qd8+ Ke5)) 33. Kxg2 {[%emt 0:00:01]} h1=Q+ $1 {[%emt 0:00:01]} 0-1

[Event "CCT Chessable Masters D-I 2024"]
[Site "Online"]
[Date "2024.02.04"]
[Round "52"]
[White "Bigfish"]
[Black "Nepomniachtchi, Ian"]
[Result "0-1"]
[ECO "E36"]
[WhiteElo "2812"]
[BlackElo "2769"]
[Annotator "RC"]
[PlyCount "106"]
[EventDate "2024.01.12"]
[EventType "k.o."]
[EventCountry "NET"]
[SourceTitle "playchess.com"]
[Source "ChessBase"]
[SourceQuality "1"]
[TimeControl "600+2"]

1. d4 {[%emt 0:00:06]} Nf6 {[%emt 0:00:04]} 2. c4 {[%emt 0:00:01]} e6 {[%emt 0:00:00]} 3. Nc3 {[%emt 0:00:01]} Bb4 {[%emt 0:00:01]} 4. Qc2 {[%emt 0:00:02]} O-O {[%emt 0:00:02]} 5. a3 {[%emt 0:00:02]} Bxc3+ {[%emt 0:00:01]} 6. Qxc3 {[%emt 0:00:01]} d5 {[%emt 0:00:01]} 7. Bg5 {[%emt 0:00:01]} h6 {[%emt 0:00:01]} 8. Bxf6 {[%emt 0:00:15]} Qxf6 {[%emt 0:00:01]} 9. Nf3 {[%emt 0:00:01]} dxc4 {[%emt 0:00:17]} 10. Qxc4 {[%emt 0:00:04]} Nc6 {[%emt 0:00:02]} 11. Qc5 {[%emt 0:00:01]} Re8 {[%emt 0:00:51]} 12. Ne5 {[%emt 0:00:37]} Nxe5 {[%emt 0:00:12]} 13. dxe5 {[%emt 0:00:04]} Qe7 {[%emt 0:00:05]} 14. Rc1 {[%emt 0:00:30]} Qxc5 {[%emt 0:00:11]} 15. Rxc5 {[%emt 0:00:02]} Re7 {[%emt 0:01:37]} 16. g4 {[%emt 0:00:20]} b6 {[%emt 0:00:03]} 17. Bg2 {[%emt 0:00:06]} Rb8 {[%emt 0:00:16]} 18. Rc1 {[%emt 0:00:23]} c5 {[%emt 0:00:02]} 19. Rd1 {[%emt 0:00:04]} Rd7 {[%emt 0:00:04]} 20. O-O {[%emt 0:00:24]} Kf8 {[%emt 0:00:10]} 21. Bc6 {[%emt 0:01:23]} Rxd1 {[%emt 0:00:04]} 22. Rxd1 {[%emt 0:00:00]} Bb7 {[%emt 0:00:07]} 23. Bxb7 {[%emt 0:02:06]} Rxb7 {[%emt 0:00:00]} 24. Rd8+ {[%emt 0:00:02]} Ke7 {[%emt 0:00:02]} 25. Rg8 {[%emt 0:00:00]} Rd7 {[%emt 0:00:07]} 26. e3 {[%emt 0:01:09]} Rd2 {[%emt 0:00:22]} 27. Ra8 {[%emt 0:00:38]} a5 {[%emt 0:00:57]} 28. Ra7+ {[%emt 0:00:05]} Rd7 {[%emt 0:00:02]} 29. Ra6 {[%emt 0:00:05]} Rb7 {[%emt 0:00:02]} 30. Kf1 {[%emt 0:00:06]} Kd7 {[%emt 0:00:27]} 31. Ke2 {[%emt 0:00:03]} Kc6 {[%emt 0:00:02]} 32. Ra8 {[%emt 0:00:06]} Kd5 {[%emt 0:00:22]} 33. Kd3 {[%emt 0:00:30]} Kxe5 {[%emt 0:00:27]} 34. Kc4 {[%emt 0:00:11]} Rd7 {[%emt 0:00:25]} 35. Rb8 {[%emt 0:00:06]} Rd2 {[%emt 0:00:06]} 36. f4+ {[%emt 0:00:08]} Ke4 {[%emt 0:00:01]} 37. Rxb6 {[%emt 0:00:02]} Kxe3 {[%emt 0:00:23]} 38. Rb7 {[%emt 0:00:05]} f5 {[%emt 0:01:27]} 39. h3 {[%emt 0:00:11]} Kxf4 {[%emt 0:00:05]} 40. Kxc5 {[%emt 0:00:04]} g5 {[%emt 0:00:06]} 41. b4 {[%emt 0:00:20]} axb4 {[%emt 0:00:03]} 42. axb4 {[%emt 0:00:05]} Kg3 {[%emt 0:00:08]} 43. gxf5 {[%emt 0:00:27]} exf5 {[%emt 0:00:00]} 44. Rh7 {[%emt 0:00:04]} Kxh3 {[%emt 0:00:14]} 45. Rxh6+ {[%emt 0:00:02]} Kg3 {[%emt 0:00:01]} 46. b5 {[%emt 0:00:10]} f4 {[%emt 0:00:05]} 47. b6 {[%emt 0:00:02]} Rb2 {[%emt 0:00:01]} 48. Rg6 {[%emt 0:00:08]} g4 {[%emt 0:00:01]} 49. Kd4 {[%emt 0:00:02]} f3 {[%emt 0:00:01]} 50. Kc3 {[%emt 0:00:00]} Rb1 {[%emt 0:00:02]} 51. Kc2 {[%emt 0:00:03]} Rb5 {[%emt 0:00:01]} 52. Kd3 {[%emt 0:00:04]} f2 {[%emt 0:00:01]} 53. Ke2 {[%emt 0:00:00]} Rb2+ {[%emt 0:00:01]} 0-1

[Event "CCT Chessable Masters D-I 2024"]
[Site "Online"]
[Date "2024.02.04"]
[Round "52"]
[White "Nepomniachtchi, Ian"]
[Black "Bigfish"]
[Result "1-0"]
[ECO "B30"]
[WhiteElo "2769"]
[BlackElo "2804"]
[Annotator "RC"]
[PlyCount "94"]
[EventDate "2024.01.12"]
[EventType "k.o."]
[EventCountry "NET"]
[SourceTitle "playchess.com"]
[Source "ChessBase"]
[SourceQuality "1"]
[TimeControl "600+2"]

1. e4 {[%emt 0:00:02]} c5 {[%emt 0:00:04]} 2. Nf3 {[%emt 0:00:02]} Nc6 {[%emt 0:00:04]} 3. Bb5 {[%emt 0:00:05]} Nf6 {[%emt 0:00:05]} 4. Nc3 {[%emt 0:00:07]} Qc7 {[%emt 0:00:03]} 5. O-O {[%emt 0:00:03]} e5 {[%emt 0:00:01]} 6. d3 {[%emt 0:00:19]} a6 {[%emt 0:00:07]} 7. Bc4 {[%emt 0:00:03]} b5 {[%emt 0:00:30]} 8. Nd5 {[%emt 0:00:02]} Qd6 {[%emt 0:00:24]} 9. Nxf6+ {[%emt 0:00:10]} Qxf6 {[%emt 0:00:31]} 10. Bd5 {[%emt 0:00:03]} h6 {[%emt 0:00:11]} 11. a4 {[%emt 0:00:16]} b4 {[%emt 0:00:04]} 12. c3 {[%emt 0:00:01]} Rb8 {[%emt 0:00:05]} 13. Be3 {[%emt 0:00:11]} Bd6 {[%emt 0:00:11]} 14. d4 {[%emt 0:00:05]} cxd4 {[%emt 0:00:02]} 15. cxd4 {[%emt 0:00:01]} exd4 {[%emt 0:00:00]} 16. Nxd4 {[%emt 0:00:21]} O-O {[%emt 0:00:03]} 17. Rc1 {[%emt 0:01:13]} Ne7 {[%emt 0:00:09]} 18. Nf5 {[%emt 0:01:03]} Nxf5 {[%emt 0:01:34]} 19. exf5 {[%emt 0:00:02]} Bb7 {[%emt 0:00:01]} 20. Bxb7 {[%emt 0:00:05]} Rxb7 {[%emt 0:00:04]} 21. Qd5 {[%emt 0:00:14]} Rc7 {[%emt 0:01:20]} 22. Bd4 {[%emt 0:00:39]} Qg5 {[%emt 0:00:04]} 23. Be3 {[%emt 0:00:14]} Qe7 {[%emt 0:00:46]} 24. Rxc7 {[%emt 0:00:02]} Bxc7 {[%emt 0:00:00]} 25. Bc5 {[%emt 0:00:01]} d6 {[%emt 0:00:17]} 26. Bxb4 {[%emt 0:00:02]} Qd7 {[%emt 0:00:09]} 27. a5 {[%emt 0:00:16]} Rb8 {[%emt 0:00:06]} 28. Bc3 {[%emt 0:00:01]} Qb5 {[%emt 0:00:15]} 29. Rd1 {[%emt 0:00:20]} Qxd5 {[%emt 0:00:06]} 30. Rxd5 {[%emt 0:00:00]} f6 {[%emt 0:00:01]} 31. g4 {[%emt 0:00:04]} Kf7 {[%emt 0:00:01]} 32. Kg2 {[%emt 0:00:02]} Ke8 {[%emt 0:00:02]} 33. h4 {[%emt 0:00:08]} Kd7 {[%emt 0:00:01]} 34. g5 {[%emt 0:00:01]} Kc6 {[%emt 0:00:09]} 35. Rd3 {[%emt 0:00:07]} Rb5 {[%emt 0:00:22]} 36. Rf3 {[%emt 0:01:04]} Bd8 {[%emt 0:00:10]} 37. gxh6 {[%emt 0:00:02]} gxh6 {[%emt 0:00:02]} 38. h5 {[%emt 0:00:00]} Rd5 {[%emt 0:00:42]} 39. Kg3 {[%emt 0:00:20]} Rd1 {[%emt 0:00:04]} 40. Kg4 {[%emt 0:00:00]} d5 {[%emt 0:00:03]} 41. Re3 {[%emt 0:01:17]} d4 {[%emt 0:00:08]} 42. Re1 {[%emt 0:00:01]} Rd3 {[%emt 0:00:54]} 43. Bb4 {[%emt 0:00:01]} Kb5 {[%emt 0:00:07]} 44. Bf8 {[%emt 0:00:11]} Bxa5 {[%emt 0:00:02]} 45. Rh1 {[%emt 0:00:04]} Bd2 {[%emt 0:00:33]} 46. f4 {[%emt 0:00:01]} Re3 {[%emt 0:00:06]} 47. Bxh6 {[%emt 0:00:01]} Be1 {[%emt 0:00:01]} 1-0

[Event "CCT Chessable Masters D-I 2024"]
[Site "Online"]
[Date "2024.02.04"]
[Round "52"]
[White "Firouzja, Alireza"]
[Black "Martinez Alcantara, Jose Eduardo"]
[Result "1-0"]
[ECO "C92"]
[WhiteElo "2759"]
[BlackElo "2610"]
[Annotator "ChessBase"]
[PlyCount "119"]
[EventDate "2024.01.12"]
[EventType "k.o."]
[EventCountry "NET"]
[SourceTitle "playchess.com"]
[Source "ChessBase"]
[SourceQuality "1"]
[TimeControl "600+2"]

1. e4 {[%emt 0:00:02]} e5 {[%emt 0:00:17]} 2. Nf3 {[%emt 0:00:02]} Nc6 {[%emt 0:00:01]} 3. Bb5 {[%emt 0:00:01]} a6 {[%emt 0:00:02]} 4. Ba4 {[%emt 0:00:01]} Nf6 {[%emt 0:00:02]} 5. O-O {[%emt 0:00:01]} Be7 {[%emt 0:00:01]} 6. Re1 {[%emt 0:00:00]} b5 {[%emt 0:00:02]} 7. Bb3 {[%emt 0:00:01]} d6 {[%emt 0:00:01]} 8. c3 {[%emt 0:00:01]} O-O {[%emt 0:00:00]} 9. h3 {[%emt 0:00:01]} Be6 {[%emt 0:00:01]} 10. d4 {[%emt 0:00:13]} Bxb3 {[%emt 0:00:03]} 11. axb3 {[%emt 0:00:01]} h6 {[%emt 0:00:17]} 12. d5 {[%emt 0:01:16]} Nb8 {[%emt 0:00:03]} 13. Nbd2 {[%emt 0:00:01]} c6 {[%emt 0:00:36]} 14. c4 {[%emt 0:00:01]} cxd5 {[%emt 0:00:24]} 15. cxd5 {[%emt 0:00:02]} Nbd7 {[%emt 0:00:08]} 16. Nf1 {[%emt 0:00:18]} a5 {[%emt 0:01:15]} 17. Ng3 {[%emt 0:00:04]} Re8 {[%emt 0:00:33]} 18. Be3 {[%emt 0:00:13]} Bf8 {[%emt 0:00:18]} 19. Qe2 {[%emt 0:00:22]} Qb8 {[%emt 0:00:04]} 20. Ra2 {[%emt 0:02:00]} Rc8 {[%emt 0:01:32]} 21. Rea1 {[%emt 0:00:16]} a4 {[%emt 0:00:24]} 22. bxa4 {[%emt 0:00:24]} bxa4 {[%emt 0:00:00]} 23. Rxa4 {[%emt 0:00:03]} Rxa4 {[%emt 0:00:00]} 24. Rxa4 {[%emt 0:00:01]} Qb3 {[%emt 0:00:05]} 25. Ra3 {[%emt 0:01:08]} Qb4 {[%emt 0:00:03]} 26. Ra7 {[%emt 0:00:46]} Rb8 {[%emt 0:00:25]} 27. Qc2 {[%emt 0:01:03]} Qxb2 {[%emt 0:01:38]} 28. Qc6 {[%emt 0:00:01]} Rd8 {[%emt 0:00:21]} 29. Kh2 {[%emt 0:00:18]} Nb8 {[%emt 0:00:42]} 30. Qc7 {[%emt 0:01:06]} Rd7 {[%emt 0:00:02]} 31. Qc8 {[%emt 0:00:05]} Rxa7 {[%emt 0:00:21]} 32. Bxa7 {[%emt 0:00:00]} Nbd7 {[%emt 0:00:01]} 33. Nf5 {[%emt 0:00:13]} Qb4 {[%emt 0:00:07]} 34. Ng3 {[%emt 0:00:23]} g6 {[%emt 0:00:33]} 35. Be3 {[%emt 0:00:02]} Kh7 {[%emt 0:00:09]} 36. Nd2 {[%emt 0:00:17]} Qb8 {[%emt 0:00:01]} 37. Qxb8 {[%emt 0:00:08]} Nxb8 {[%emt 0:00:00]} 38. Nc4 {[%emt 0:00:01]} Nbd7 {[%emt 0:00:02]} 39. f3 {[%emt 0:00:01]} Ne8 {[%emt 0:00:02]} 40. Bd2 {[%emt 0:00:04]} h5 {[%emt 0:00:05]} 41. Ne2 {[%emt 0:00:03]} f5 {[%emt 0:00:03]} 42. Bb4 {[%emt 0:00:02]} fxe4 {[%emt 0:00:15]} 43. fxe4 {[%emt 0:00:00]} Ndf6 {[%emt 0:00:09]} 44. Nc3 {[%emt 0:00:02]} Kg8 {[%emt 0:00:08]} 45. Kg3 {[%emt 0:00:04]} g5 {[%emt 0:00:02]} 46. Kf3 {[%emt 0:00:06]} g4+ {[%emt 0:00:01]} 47. Ke2 {[%emt 0:00:06]} gxh3 {[%emt 0:00:02]} 48. gxh3 {[%emt 0:00:01]} h4 {[%emt 0:00:01]} 49. Kf3 {[%emt 0:00:02]} Nh7 {[%emt 0:00:08]} 50. Kg4 {[%emt 0:00:04]} Be7 {[%emt 0:00:01]} 51. Nb5 {[%emt 0:00:03]} Nhf6+ {[%emt 0:00:08]} 52. Kf3 {[%emt 0:00:02]} Nxe4 {[%emt 0:00:03]} 53. Kxe4 {[%emt 0:00:02]} Nf6+ {[%emt 0:00:01]} 54. Kf5 {[%emt 0:00:03]} Nxd5 {[%emt 0:00:00]} 55. Bd2 {[%emt 0:00:03]} Nf4 {[%emt 0:00:07]} 56. Bxf4 {[%emt 0:00:01]} exf4 {[%emt 0:00:00]} 57. Kxf4 {[%emt 0:00:02]} d5 {[%emt 0:00:00]} 58. Ne3 {[%emt 0:00:01]} d4 {[%emt 0:00:05]} 59. Nxd4 {[%emt 0:00:02]} Bc5 {[%emt 0:00:00]} 60. Ndf5 {[%emt 0:00:01]} 1-0

[Event "CCT Chessable Masters D-I 2024"]
[Site "Online"]
[Date "2024.02.04"]
[Round "52"]
[White "Martinez Alcantara, Jose Eduardo"]
[Black "Firouzja, Alireza"]
[Result "1/2-1/2"]
[ECO "C67"]
[WhiteElo "2610"]
[BlackElo "2759"]
[Annotator "ChessBase"]
[PlyCount "74"]
[EventDate "2024.01.12"]
[EventType "k.o."]
[EventCountry "NET"]
[SourceTitle "playchess.com"]
[Source "ChessBase"]
[SourceQuality "1"]
[TimeControl "600+2"]

1. e4 {[%emt 0:00:03]} e5 {[%emt 0:00:04]} 2. Nf3 {[%emt 0:00:06]} Nc6 {[%emt 0:00:00]} 3. Bb5 {[%emt 0:00:08]} Nf6 {[%emt 0:00:01]} 4. O-O {[%emt 0:00:18]} Nxe4 {[%emt 0:00:01]} 5. Re1 {[%emt 0:00:02]} Nd6 {[%emt 0:00:01]} 6. Nxe5 {[%emt 0:00:00]} Be7 {[%emt 0:00:01]} 7. Bf1 {[%emt 0:00:03]} Nxe5 {[%emt 0:00:04]} 8. Rxe5 {[%emt 0:00:00]} O-O {[%emt 0:00:01]} 9. d4 {[%emt 0:00:01]} Bf6 {[%emt 0:00:01]} 10. Re1 {[%emt 0:00:02]} Re8 {[%emt 0:00:01]} 11. c3 {[%emt 0:00:02]} Rxe1 {[%emt 0:00:03]} 12. Qxe1 {[%emt 0:00:00]} Ne8 {[%emt 0:00:01]} 13. Bf4 {[%emt 0:00:19]} d5 {[%emt 0:00:02]} 14. a4 {[%emt 0:00:02]} a5 {[%emt 0:01:11]} 15. Nd2 {[%emt 0:00:09]} Bf5 {[%emt 0:00:07]} 16. Qe3 {[%emt 0:00:37]} Nd6 {[%emt 0:00:09]} 17. Bd3 {[%emt 0:00:27]} Bxd3 {[%emt 0:01:17]} 18. Qxd3 {[%emt 0:00:00]} Bg5 {[%emt 0:00:02]} 19. Bxd6 {[%emt 0:00:25]} Qxd6 {[%emt 0:00:01]} 20. Nf3 {[%emt 0:00:03]} Bf6 {[%emt 0:00:03]} 21. Qb5 {[%emt 0:00:06]} b6 {[%emt 0:00:17]} 22. Re1 {[%emt 0:00:10]} g6 {[%emt 0:00:10]} 23. g3 {[%emt 0:00:18]} Rd8 {[%emt 0:00:41]} 24. Ne5 {[%emt 0:01:06]} Bxe5 {[%emt 0:00:11]} 25. Rxe5 {[%emt 0:00:00]} Qd7 {[%emt 0:00:45]} 26. Qe2 {[%emt 0:02:13]} Qxa4 {[%emt 0:01:20]} 27. Re7 {[%emt 0:00:02]} c5 {[%emt 0:00:40]} 28. dxc5 {[%emt 0:00:07]} bxc5 {[%emt 0:00:05]} 29. Qf3 {[%emt 0:00:04]} Rf8 {[%emt 0:00:04]} 30. Qxd5 {[%emt 0:00:14]} Qa1+ {[%emt 0:00:06]} 31. Kg2 {[%emt 0:00:01]} Qxb2 {[%emt 0:00:00]} 32. Qxc5 {[%emt 0:00:01]} a4 {[%emt 0:00:14]} 33. Ra7 {[%emt 0:00:05]} Qb3 {[%emt 0:00:19]} 34. h4 {[%emt 0:00:26]} h5 {[%emt 0:00:26]} 35. Qb4 {[%emt 0:00:46]} Rc8 {[%emt 0:00:32]} 36. Rxa4 {[%emt 0:00:21]} Qxc3 {[%emt 0:00:07]} 37. Qxc3 {[%emt 0:00:01]} Rxc3 {[%emt 0:00:01]} 1/2-1/2